[Event "Titled Tuesday Blitz October 18 Late 2022"]
[White "Pavlidou, Ekaterini"]
[Black "Guzman Moneo, Alberto"]
[WhiteFideId "4213262"]
[BlackFideId "2209616"]
[WhiteElo "2125"]
[BlackElo "2157"]
[Result "0-1"]
[Round "02"]
[TimeControl "180+1"]
[Date "2022.10.19"]
[WhiteClock "0:01:22"]
[BlackClock "0:01:05"]

1. d4 {[%clk 0:03:00]}  Nf6 {[%clk 0:02:59]} 2. c4 {[%clk 0:03:01]}  c5 {[%clk 0:02:59]} 3. d5 {[%clk 0:03:00]}  b5 {[%clk 0:02:59]} 4. cxb5 {[%clk 0:03:00]}  a6 {[%clk 0:02:59]} 5. Nc3 {[%clk 0:03:00]}  g6 {[%clk 0:02:59]} 6. e4 {[%clk 0:02:59]}  d6 {[%clk 0:02:59]} 7. h3 {[%clk 0:02:59]}  Bg7 {[%clk 0:02:59]} 8. f4 {[%clk 0:02:59]}  O-O {[%clk 0:02:59]} 9. Nf3 {[%clk 0:02:59]}  e6 {[%clk 0:02:59]} 10. dxe6 {[%clk 0:02:56]}  Bxe6 {[%clk 0:03:00]} 11. bxa6 {[%clk 0:02:53]}  Nxa6 {[%clk 0:02:52]} 12. Bc4 {[%clk 0:02:51]}  Bxc4 {[%clk 0:02:52]} 13. b3 {[%clk 0:02:44]}  Be6 {[%clk 0:02:50]} 14. Bb2 {[%clk 0:02:43]}  Nxe4 {[%clk 0:02:46]} 15. Qc2 {[%clk 0:02:33]}  Nxc3 {[%clk 0:02:35]} 16. Bxc3 {[%clk 0:02:33]}  Nb4 {[%clk 0:02:34]} 17. Qd2 {[%clk 0:02:30]}  Bxc3 {[%clk 0:02:29]} 18. Qxc3 {[%clk 0:02:30]}  Nd5 {[%clk 0:02:28]} 19. Qd2 {[%clk 0:02:29]}  Qf6 {[%clk 0:02:27]} 20. O-O {[%clk 0:02:23]}  Qxf4 {[%clk 0:02:27]} 21. Qb2 {[%clk 0:02:11]}  Rab8 {[%clk 0:02:15]} 22. Kh1 {[%clk 0:02:10]}  Qg3 {[%clk 0:02:11]} 23. Ng1 {[%clk 0:02:00]}  Qe5 {[%clk 0:02:07]} 24. Qd2 {[%clk 0:01:56]}  Qd4 {[%clk 0:01:58]} 25. Qh6 {[%clk 0:01:51]}  Qg7 {[%clk 0:01:58]} 26. Qd2 {[%clk 0:01:50]}  Qd4 {[%clk 0:01:57]} 27. Qh6 {[%clk 0:01:50]}  Ne3 {[%clk 0:01:52]} 28. Nf3 {[%clk 0:01:44]}  Nf5 {[%clk 0:01:24]} 29. Qg5 {[%clk 0:01:34]}  h6 {[%clk 0:01:20]} 30. Qc1 {[%clk 0:01:29]}  Ng3+ {[%clk 0:01:12]} 31. Kh2 {[%clk 0:01:29]}  Nxf1+ {[%clk 0:01:12]} 32. Qxf1 {[%clk 0:01:29]}  Qf6 {[%clk 0:01:10]} 33. Rd1 {[%clk 0:01:27]}  d5 {[%clk 0:01:09]} 34. Qd3 {[%clk 0:01:24]}  d4 {[%clk 0:01:06]} 35. Qd2 {[%clk 0:01:24]}  g5 {[%clk 0:01:05]} 36. Rf1 {[%clk 0:01:22]}  Qf4+ {[%clk 0:01:05]} 0-1


[Site "https://www.chess.com"]

[Event "Titled Tuesday Blitz October 18 Late 2022"]
[White "Petrova, Irina"]
[Black "Dardha, Daniel"]
[WhiteFideId "14124122"]
[BlackFideId "240990"]
[WhiteElo "2023"]
[BlackElo "2528"]
[Result "0-1"]
[Round "02"]
[TimeControl "180+1"]
[Date "2022.10.19"]
[WhiteClock "0:00:20"]
[BlackClock "0:02:08"]

1. e4 {[%clk 0:03:00]}  e5 {[%clk 0:02:59]} 2. Nf3 {[%clk 0:03:00]}  Nc6 {[%clk 0:02:57]} 3. Bb5 {[%clk 0:03:00]}  Nf6 {[%clk 0:02:56]} 4. d3 {[%clk 0:03:00]}  d6 {[%clk 0:02:53]} 5. O-O {[%clk 0:02:58]}  a6 {[%clk 0:02:51]} 6. Ba4 {[%clk 0:02:58]}  g6 {[%clk 0:02:48]} 7. c4 {[%clk 0:02:55]}  Bg7 {[%clk 0:02:46]} 8. Nc3 {[%clk 0:02:55]}  O-O {[%clk 0:02:45]} 9. Nd5 {[%clk 0:02:55]}  Nd7 {[%clk 0:02:44]} 10. b4 {[%clk 0:02:41]}  Nd4 {[%clk 0:02:41]} 11. Nxd4 {[%clk 0:02:36]}  exd4 {[%clk 0:02:42]} 12. Bb3 {[%clk 0:02:21]}  c6 {[%clk 0:02:35]} 13. Nf4 {[%clk 0:02:21]}  a5 {[%clk 0:02:36]} 14. b5 {[%clk 0:02:06]}  Nc5 {[%clk 0:02:35]} 15. Ba4 {[%clk 0:02:00]}  Bd7 {[%clk 0:02:32]} 16. Ne2 {[%clk 0:01:48]}  Nxa4 {[%clk 0:02:26]} 17. Qxa4 {[%clk 0:01:48]}  c5 {[%clk 0:02:26]} 18. Bf4 {[%clk 0:01:43]}  Qe7 {[%clk 0:02:23]} 19. Bg3 {[%clk 0:01:37]}  f5 {[%clk 0:02:22]} 20. f3 {[%clk 0:01:33]}  g5 {[%clk 0:02:21]} 21. Rae1 {[%clk 0:01:09]}  f4 {[%clk 0:02:20]} 22. Bf2 {[%clk 0:01:09]}  Be5 {[%clk 0:02:21]} 23. g4 {[%clk 0:00:50]}  h5 {[%clk 0:02:14]} 24. h3 {[%clk 0:00:49]}  hxg4 {[%clk 0:02:12]} 25. hxg4 {[%clk 0:00:50]}  Bxg4 {[%clk 0:02:12]} 26. fxg4 {[%clk 0:00:45]}  Qe6 {[%clk 0:02:13]} 27. Qd1 {[%clk 0:00:26]}  Qxg4+ {[%clk 0:02:11]} 28. Kh2 {[%clk 0:00:21]}  f3+ {[%clk 0:02:08]} 29. Ng3 {[%clk 0:00:20]}  Qh4+ {[%clk 0:02:07]} 30. Kg1 {[%clk 0:00:20]}  Bxg3 {[%clk 0:02:08]} 0-1


[Site "https://www.chess.com"]

[Event "Titled Tuesday Blitz October 18 Late 2022"]
[White "Plotnikov, Pavel"]
[Black "Galchenko, Matvey"]
[WhiteFideId "4170342"]
[BlackFideId "24175480"]
[WhiteElo "2298"]
[BlackElo "2423"]
[Result "0-1"]
[Round "02"]
[TimeControl "180+1"]
[Date "2022.10.18"]
[WhiteClock "0:00:26"]
[BlackClock "0:02:00"]

1. e4 {[%clk 0:02:59]}  e6 {[%clk 0:02:57]} 2. d4 {[%clk 0:02:59]}  d5 {[%clk 0:02:58]} 3. e5 {[%clk 0:02:59]}  c5 {[%clk 0:02:56]} 4. c3 {[%clk 0:03:00]}  Qb6 {[%clk 0:02:56]} 5. Nf3 {[%clk 0:02:59]}  Nc6 {[%clk 0:02:57]} 6. a3 {[%clk 0:02:58]}  Nh6 {[%clk 0:02:56]} 7. Bd3 {[%clk 0:02:51]}  cxd4 {[%clk 0:02:53]} 8. cxd4 {[%clk 0:02:51]}  g5 {[%clk 0:02:45]} 9. h3 {[%clk 0:02:47]}  Nf5 {[%clk 0:02:44]} 10. Bxf5 {[%clk 0:02:46]}  exf5 {[%clk 0:02:45]} 11. Nc3 {[%clk 0:02:41]}  Be6 {[%clk 0:02:46]} 12. Bxg5 {[%clk 0:02:33]}  Qxb2 {[%clk 0:02:44]} 13. Na4 {[%clk 0:02:30]}  Qb5 {[%clk 0:02:42]} 14. Rb1 {[%clk 0:02:26]}  Qa5+ {[%clk 0:02:39]} 15. Bd2 {[%clk 0:02:23]}  Qa6 {[%clk 0:02:37]} 16. Bb4 {[%clk 0:02:13]}  Nxb4 {[%clk 0:02:34]} 17. axb4 {[%clk 0:02:13]}  b6 {[%clk 0:02:33]} 18. b5 {[%clk 0:01:59]}  Qa5+ {[%clk 0:02:32]} 19. Kf1 {[%clk 0:01:56]}  Rg8 {[%clk 0:02:27]} 20. g3 {[%clk 0:01:55]}  f4 {[%clk 0:02:27]} 21. g4 {[%clk 0:01:55]}  h5 {[%clk 0:02:27]} 22. g5 {[%clk 0:01:54]}  Bf5 {[%clk 0:02:27]} 23. Rb2 {[%clk 0:01:27]}  Be4 {[%clk 0:02:25]} 24. Ke2 {[%clk 0:01:21]}  Ba3 {[%clk 0:02:21]} 25. Qc1 {[%clk 0:01:02]}  Rg6 {[%clk 0:02:07]} 26. Nc3 {[%clk 0:00:26]}  Rc8 {[%clk 0:02:01]} 27. Rb3 {[%clk 0:00:26]}  Bxc1 {[%clk 0:02:00]} 0-1


[Site "https://www.chess.com"]

[Event "Titled Tuesday Blitz October 18 Late 2022"]
[White "Popov, Mikhail"]
[Black "Licznerski, Lukasz"]
[WhiteFideId "4146182"]
[BlackFideId "1179250"]
[WhiteElo "2296"]
[BlackElo "2403"]
[Result "0-1"]
[Round "02"]
[TimeControl "180+1"]
[Date "2022.10.19"]
[WhiteClock "0:00:01"]
[BlackClock "0:00:05"]

1. e4 {[%clk 0:02:45]}  c6 {[%clk 0:02:59]} 2. d4 {[%clk 0:02:43]}  d5 {[%clk 0:03:00]} 3. e5 {[%clk 0:02:42]}  Bf5 {[%clk 0:02:59]} 4. h4 {[%clk 0:02:41]}  h5 {[%clk 0:02:59]} 5. Bd3 {[%clk 0:02:36]}  Bxd3 {[%clk 0:02:59]} 6. Qxd3 {[%clk 0:02:36]}  Qa5+ {[%clk 0:03:00]} 7. Nd2 {[%clk 0:02:34]}  e6 {[%clk 0:02:59]} 8. Ne2 {[%clk 0:02:31]}  Ne7 {[%clk 0:02:57]} 9. Ng3 {[%clk 0:02:24]}  c5 {[%clk 0:02:49]} 10. dxc5 {[%clk 0:02:22]}  Nd7 {[%clk 0:02:44]} 11. Qe3 {[%clk 0:02:19]}  Nc6 {[%clk 0:02:42]} 12. O-O {[%clk 0:02:18]}  Qxc5 {[%clk 0:02:28]} 13. Qg5 {[%clk 0:02:12]}  g6 {[%clk 0:02:03]} 14. Nb3 {[%clk 0:02:03]}  Qc4 {[%clk 0:01:44]} 15. Qe3 {[%clk 0:01:55]}  Qxh4 {[%clk 0:01:36]} 16. f4 {[%clk 0:01:48]}  Qg4 {[%clk 0:01:29]} 17. Nh1 {[%clk 0:01:41]}  h4 {[%clk 0:01:18]} 18. Nf2 {[%clk 0:01:40]}  Qf5 {[%clk 0:01:19]} 19. c3 {[%clk 0:01:37]}  Bh6 {[%clk 0:01:12]} 20. Qf3 {[%clk 0:01:29]}  Bg7 {[%clk 0:00:54]} 21. Nh3 {[%clk 0:01:04]}  Nb6 {[%clk 0:00:46]} 22. Be3 {[%clk 0:01:01]}  Nc4 {[%clk 0:00:46]} 23. Bd4 {[%clk 0:00:55]}  Nxb2 {[%clk 0:00:37]} 24. Rab1 {[%clk 0:00:48]}  Nc4 {[%clk 0:00:37]} 25. Rf2 {[%clk 0:00:39]}  b6 {[%clk 0:00:36]} 26. Rbf1 {[%clk 0:00:35]}  Bf8 {[%clk 0:00:34]} 27. Nd2 {[%clk 0:00:29]}  Nxd2 {[%clk 0:00:34]} 28. Rxd2 {[%clk 0:00:30]}  Na5 {[%clk 0:00:34]} 29. Rdf2 {[%clk 0:00:18]}  Nc4 {[%clk 0:00:35]} 30. Qd1 {[%clk 0:00:18]}  a6 {[%clk 0:00:28]} 31. Qb3 {[%clk 0:00:06]}  Be7 {[%clk 0:00:18]} 32. a4 {[%clk 0:00:05]}  Kf8 {[%clk 0:00:17]} 33. Bxb6 {[%clk 0:00:04]}  Rb8 {[%clk 0:00:15]} 34. a5 {[%clk 0:00:04]}  Nxa5 {[%clk 0:00:15]} 35. Qa4 {[%clk 0:00:02]}  Nc4 {[%clk 0:00:14]} 36. Bd4 {[%clk 0:00:02]}  a5 {[%clk 0:00:14]} 37. Qd1 {[%clk 0:00:02]}  Kg7 {[%clk 0:00:13]} 38. Ng5 {[%clk 0:00:02]}  Ra8 {[%clk 0:00:11]} 39. Ra2 {[%clk 0:00:01]}  a4 {[%clk 0:00:06]} 40. Qe2 {[%clk 0:00:01]}  a3 {[%clk 0:00:06]} 41. Qf2 {[%clk 0:00:01]}  Bxg5 {[%clk 0:00:05]} 42. fxg5 {[%clk 0:00:01]}  Qxf2+ {[%clk 0:00:05]} 0-1


[Site "https://www.chess.com"]

[Event "Titled Tuesday Blitz October 18 Late 2022"]
[White "Pranav, V"]
[Black "Machidon, Cristi"]
[WhiteFideId "25060783"]
[BlackFideId "13904590"]
[WhiteElo "2430"]
[BlackElo "2312"]
[Result "1-0"]
[Round "02"]
[TimeControl "180+1"]
[Date "2022.10.18"]
[WhiteClock "0:01:25"]
[BlackClock "0:00:26"]

1. Nf3 {[%clk 0:03:00]}  d5 {[%clk 0:02:58]} 2. g3 {[%clk 0:03:00]}  Nf6 {[%clk 0:02:58]} 3. Bg2 {[%clk 0:03:00]}  g6 {[%clk 0:02:58]} 4. O-O {[%clk 0:03:01]}  Bg7 {[%clk 0:02:59]} 5. d3 {[%clk 0:03:02]}  O-O {[%clk 0:02:59]} 6. Nbd2 {[%clk 0:03:02]}  Nc6 {[%clk 0:02:54]} 7. e4 {[%clk 0:03:02]}  e5 {[%clk 0:02:53]} 8. exd5 {[%clk 0:03:02]}  Nxd5 {[%clk 0:02:54]} 9. Re1 {[%clk 0:03:03]}  h6 {[%clk 0:02:52]} 10. a4 {[%clk 0:03:01]}  Re8 {[%clk 0:02:52]} 11. Nc4 {[%clk 0:03:00]}  a5 {[%clk 0:02:47]} 12. Nfd2 {[%clk 0:02:58]}  Ndb4 {[%clk 0:02:39]} 13. Nb3 {[%clk 0:02:49]}  Be6 {[%clk 0:02:31]} 14. Bd2 {[%clk 0:02:49]}  Bd5 {[%clk 0:02:29]} 15. Bf1 {[%clk 0:02:35]}  b6 {[%clk 0:02:17]} 16. c3 {[%clk 0:02:27]}  Bxc4 {[%clk 0:02:09]} 17. dxc4 {[%clk 0:02:26]}  Nd3 {[%clk 0:02:09]} 18. Re3 {[%clk 0:02:25]}  e4 {[%clk 0:01:37]} 19. Qc2 {[%clk 0:01:57]}  Nce5 {[%clk 0:01:34]} 20. Bg2 {[%clk 0:01:48]}  f5 {[%clk 0:01:34]} 21. Nd4 {[%clk 0:01:46]}  Nxc4 {[%clk 0:01:29]} 22. Rxd3 {[%clk 0:01:46]}  exd3 {[%clk 0:01:28]} 23. Qb3 {[%clk 0:01:46]}  Kh7 {[%clk 0:01:06]} 24. Qxc4 {[%clk 0:01:45]}  Rc8 {[%clk 0:01:06]} 25. Ne6 {[%clk 0:01:40]}  Qe7 {[%clk 0:00:57]} 26. Nxg7 {[%clk 0:01:40]}  Kxg7 {[%clk 0:00:58]} 27. Be3 {[%clk 0:01:38]}  c5 {[%clk 0:00:57]} 28. Rd1 {[%clk 0:01:37]}  Rcd8 {[%clk 0:00:55]} 29. Rxd3 {[%clk 0:01:36]}  Rxd3 {[%clk 0:00:56]} 30. Qxd3 {[%clk 0:01:37]}  Rd8 {[%clk 0:00:56]} 31. Qe2 {[%clk 0:01:33]}  Qd7 {[%clk 0:00:49]} 32. Bf1 {[%clk 0:01:27]}  Qxa4 {[%clk 0:00:33]} 33. Bxc5 {[%clk 0:01:27]}  Re8 {[%clk 0:00:30]} 34. Bd4+ {[%clk 0:01:25]}  Kh7 {[%clk 0:00:30]} 35. Qa6 {[%clk 0:01:25]}  Qc6 {[%clk 0:00:26]} 1-0


[Site "https://www.chess.com"]

[Event "Titled Tuesday Blitz October 18 Late 2022"]
[White "Prydun, Andriy"]
[Black "Melikyan, Gnel"]
[WhiteFideId "14145898"]
[BlackFideId "54109990"]
[WhiteElo "2163"]
[BlackElo "2138"]
[Result "1-0"]
[Round "02"]
[TimeControl "180+1"]
[Date "2022.10.19"]
[WhiteClock "0:00:14"]
[BlackClock "0:00:24"]

1. e4 {[%clk 0:03:00]}  c5 {[%clk 0:02:58]} 2. Nf3 {[%clk 0:03:01]}  Nc6 {[%clk 0:02:58]} 3. Bb5 {[%clk 0:03:01]}  e6 {[%clk 0:02:58]} 4. O-O {[%clk 0:02:59]}  Nge7 {[%clk 0:02:58]} 5. Re1 {[%clk 0:02:59]}  a6 {[%clk 0:02:59]} 6. Bf1 {[%clk 0:02:59]}  d5 {[%clk 0:02:58]} 7. b3 {[%clk 0:02:57]}  b5 {[%clk 0:02:55]} 8. Bb2 {[%clk 0:02:57]}  dxe4 {[%clk 0:02:55]} 9. Rxe4 {[%clk 0:02:57]}  Bb7 {[%clk 0:02:56]} 10. Rg4 {[%clk 0:02:51]}  Nf5 {[%clk 0:02:50]} 11. a4 {[%clk 0:02:46]}  h5 {[%clk 0:02:45]} 12. Rg5 {[%clk 0:02:34]}  Nfd4 {[%clk 0:02:41]} 13. axb5 {[%clk 0:02:26]}  axb5 {[%clk 0:02:38]} 14. Rxa8 {[%clk 0:02:02]}  Bxa8 {[%clk 0:02:38]} 15. Nxd4 {[%clk 0:01:59]}  Nxd4 {[%clk 0:02:26]} 16. Rxh5 {[%clk 0:01:57]}  Nf3+ {[%clk 0:02:07]} 17. Qxf3 {[%clk 0:01:45]}  Bxf3 {[%clk 0:02:07]} 18. Bxb5+ {[%clk 0:01:38]}  Ke7 {[%clk 0:02:04]} 19. Rxh8 {[%clk 0:01:38]}  Qa5 {[%clk 0:01:59]} 20. Nc3 {[%clk 0:01:28]}  Bb7 {[%clk 0:01:55]} 21. Rh4 {[%clk 0:01:07]}  g6 {[%clk 0:01:49]} 22. Ra4 {[%clk 0:01:06]}  Qb6 {[%clk 0:01:49]} 23. Ba3 {[%clk 0:01:06]}  Bg7 {[%clk 0:01:42]} 24. d4 {[%clk 0:01:02]}  Qc7 {[%clk 0:01:05]} 25. Bxc5+ {[%clk 0:01:01]}  Kf6 {[%clk 0:01:05]} 26. Ra7 {[%clk 0:00:46]}  Qb8 {[%clk 0:00:57]} 27. Bf1 {[%clk 0:00:43]}  Bf8 {[%clk 0:00:53]} 28. Rxb7 {[%clk 0:00:36]}  Qxb7 {[%clk 0:00:53]} 29. Bxf8 {[%clk 0:00:37]}  Qc8 {[%clk 0:00:40]} 30. Bc5 {[%clk 0:00:36]}  e5 {[%clk 0:00:39]} 31. b4 {[%clk 0:00:36]}  Qf5 {[%clk 0:00:38]} 32. Nd5+ {[%clk 0:00:32]}  Ke6 {[%clk 0:00:37]} 33. Ne3 {[%clk 0:00:33]}  Qe4 {[%clk 0:00:34]} 34. dxe5 {[%clk 0:00:34]}  Kxe5 {[%clk 0:00:32]} 35. b5 {[%clk 0:00:30]}  f5 {[%clk 0:00:30]} 36. g3 {[%clk 0:00:26]}  g5 {[%clk 0:00:28]} 37. Bd3 {[%clk 0:00:22]}  Qa4 {[%clk 0:00:21]} 38. Nxf5 {[%clk 0:00:19]}  Qa1+ {[%clk 0:00:21]} 39. Kg2 {[%clk 0:00:19]}  Kd5 {[%clk 0:00:22]} 40. Be3 {[%clk 0:00:17]}  g4 {[%clk 0:00:21]} 41. Nd4 {[%clk 0:00:13]}  Qd1 {[%clk 0:00:19]} 42. Ne2 {[%clk 0:00:14]}  Ke5 {[%clk 0:00:18]} 43. b6 {[%clk 0:00:13]}  Qb1 {[%clk 0:00:18]} 44. Nf4 {[%clk 0:00:09]}  Qb4 {[%clk 0:00:17]} 45. Be2 {[%clk 0:00:10]}  Qe4+ {[%clk 0:00:17]} 46. Kg1 {[%clk 0:00:11]}  Qxc2 {[%clk 0:00:18]} 47. Bxg4 {[%clk 0:00:11]}  Ke4 {[%clk 0:00:18]} 48. Kg2 {[%clk 0:00:11]}  Qc6 {[%clk 0:00:18]} 49. Bf3+ {[%clk 0:00:12]}  Ke5 {[%clk 0:00:18]} 50. Bxc6 {[%clk 0:00:13]}  Kf5 {[%clk 0:00:18]} 51. Bf3 {[%clk 0:00:13]}  Kg5 {[%clk 0:00:19]} 52. b7 {[%clk 0:00:14]}  Kf5 {[%clk 0:00:20]} 53. b8=Q {[%clk 0:00:15]}  Kg5 {[%clk 0:00:21]} 54. Qb4 {[%clk 0:00:16]}  Kh6 {[%clk 0:00:22]} 55. Ne2+ {[%clk 0:00:16]}  Kh7 {[%clk 0:00:21]} 56. Bd2 {[%clk 0:00:17]}  Kh8 {[%clk 0:00:22]} 57. Qb7 {[%clk 0:00:15]}  Kg8 {[%clk 0:00:23]} 58. Bd5+ {[%clk 0:00:15]}  Kf8 {[%clk 0:00:23]} 59. Bb4+ {[%clk 0:00:14]}  Ke8 {[%clk 0:00:23]} 60. Bc6+ {[%clk 0:00:14]}  Kd8 {[%clk 0:00:24]} 61. Qd7# {[%clk 0:00:14]} 1-0


[Site "https://www.chess.com"]

[Event "Titled Tuesday Blitz October 18 Late 2022"]
[White "Przybylski, Wojciech"]
[Black "Garrido, Denis"]
[WhiteFideId "1117599"]
[BlackFideId "601217"]
[WhiteElo "2221"]
[BlackElo "2223"]
[Result "1-0"]
[Round "02"]
[TimeControl "180+1"]
[Date "2022.10.19"]
[WhiteClock "0:00:43"]
[BlackClock "0:00:13"]

1. e4 {[%clk 0:03:00]}  c6 {[%clk 0:02:55]} 2. d4 {[%clk 0:02:59]}  d5 {[%clk 0:02:54]} 3. Nc3 {[%clk 0:02:59]}  dxe4 {[%clk 0:02:54]} 4. Nxe4 {[%clk 0:03:00]}  Bf5 {[%clk 0:02:55]} 5. Ng3 {[%clk 0:02:59]}  Bg6 {[%clk 0:02:55]} 6. h4 {[%clk 0:02:59]}  h6 {[%clk 0:02:56]} 7. N1e2 {[%clk 0:02:57]}  e6 {[%clk 0:02:53]} 8. Nf4 {[%clk 0:02:57]}  Bh7 {[%clk 0:02:52]} 9. Bc4 {[%clk 0:02:53]}  Bd6 {[%clk 0:02:51]} 10. Ngh5 {[%clk 0:02:48]}  Bxf4 {[%clk 0:02:49]} 11. Bxf4 {[%clk 0:02:40]}  Nf6 {[%clk 0:02:33]} 12. Nxg7+ {[%clk 0:02:32]}  Kf8 {[%clk 0:02:32]} 13. Bxh6 {[%clk 0:02:30]}  Kg8 {[%clk 0:02:27]} 14. Nxe6 {[%clk 0:02:23]}  Qe7 {[%clk 0:02:16]} 15. Qe2 {[%clk 0:02:21]}  Bf5 {[%clk 0:01:41]} 16. Bg7 {[%clk 0:01:41]}  fxe6 {[%clk 0:01:23]} 17. Bxh8 {[%clk 0:01:37]}  Kxh8 {[%clk 0:01:22]} 18. O-O-O {[%clk 0:01:28]}  Nbd7 {[%clk 0:01:21]} 19. f3 {[%clk 0:01:26]}  Nb6 {[%clk 0:01:02]} 20. Bd3 {[%clk 0:01:12]}  Re8 {[%clk 0:00:47]} 21. g4 {[%clk 0:01:00]}  Bxd3 {[%clk 0:00:44]} 22. Rxd3 {[%clk 0:01:00]}  Nbd5 {[%clk 0:00:41]} 23. Qe5 {[%clk 0:00:57]}  Qg7 {[%clk 0:00:38]} 24. a3 {[%clk 0:00:51]}  Nd7 {[%clk 0:00:30]} 25. Qd6 {[%clk 0:00:45]}  N7b6 {[%clk 0:00:13]} 26. b3 {[%clk 0:00:43]} 1-0


[Site "https://www.chess.com"]

[Event "Titled Tuesday Blitz October 18 Late 2022"]
[White "Richter, Paul"]
[Black "Urazayev, Arystanbek"]
[WhiteFideId "2046350"]
[BlackFideId "13709810"]
[WhiteElo "2566"]
[BlackElo "2441"]
[Result "1-0"]
[Round "02"]
[TimeControl "180+1"]
[Date "2022.10.18"]
[WhiteClock "0:00:08"]
[BlackClock "0:00:01"]

1. e4 {[%clk 0:03:00]}  c5 {[%clk 0:03:00]} 2. Nf3 {[%clk 0:03:00]}  d6 {[%clk 0:03:01]} 3. d4 {[%clk 0:03:00]}  cxd4 {[%clk 0:03:01]} 4. Nxd4 {[%clk 0:03:00]}  Nf6 {[%clk 0:03:02]} 5. Nc3 {[%clk 0:03:00]}  a6 {[%clk 0:03:03]} 6. Be2 {[%clk 0:03:00]}  e6 {[%clk 0:03:02]} 7. Be3 {[%clk 0:02:59]}  Be7 {[%clk 0:02:58]} 8. g4 {[%clk 0:02:47]}  h6 {[%clk 0:02:57]} 9. Bf3 {[%clk 0:02:46]}  Nfd7 {[%clk 0:02:54]} 10. Qe2 {[%clk 0:02:44]}  Nc6 {[%clk 0:02:46]} 11. O-O-O {[%clk 0:02:42]}  Qc7 {[%clk 0:02:32]} 12. h4 {[%clk 0:02:37]}  Nde5 {[%clk 0:02:29]} 13. g5 {[%clk 0:02:33]}  Nxd4 {[%clk 0:02:24]} 14. Rxd4 {[%clk 0:02:25]}  Nxf3 {[%clk 0:02:13]} 15. Qxf3 {[%clk 0:02:23]}  h5 {[%clk 0:02:14]} 16. Qg3 {[%clk 0:02:01]}  g6 {[%clk 0:02:03]} 17. Bf4 {[%clk 0:00:59]}  Qc5 {[%clk 0:01:27]} 18. Rxd6 {[%clk 0:00:33]}  O-O {[%clk 0:01:14]} 19. Rd3 {[%clk 0:00:24]}  b5 {[%clk 0:01:13]} 20. Be5 {[%clk 0:00:20]}  b4 {[%clk 0:01:09]} 21. Ne2 {[%clk 0:00:15]}  Qc4 {[%clk 0:01:09]} 22. Bd4 {[%clk 0:00:12]}  Qxa2 {[%clk 0:01:09]} 23. Qe5 {[%clk 0:00:08]}  f6 {[%clk 0:01:09]} 24. gxf6 {[%clk 0:00:08]}  Bxf6 {[%clk 0:00:58]} 25. Qg3 {[%clk 0:00:08]}  Kh7 {[%clk 0:00:42]} 26. Rg1 {[%clk 0:00:08]}  g5 {[%clk 0:00:14]} 27. Bxf6 {[%clk 0:00:08]}  Rxf6 {[%clk 0:00:08]} 28. Qxg5 {[%clk 0:00:07]}  Rg6 {[%clk 0:00:01]} 29. Qxg6+ {[%clk 0:00:07]}  Kh8 {[%clk 0:00:01]} 30. Qg7# {[%clk 0:00:08]} 1-0


[Site "https://www.chess.com"]

[Event "Titled Tuesday Blitz October 18 Late 2022"]
[White "Riehle, Marco"]
[Black "Ventura Bolet, Maxim"]
[WhiteFideId "12904392"]
[BlackFideId "22238824"]
[WhiteElo "2740"]
[BlackElo "2464"]
[Result "1-0"]
[Round "02"]
[TimeControl "180+1"]
[Date "2022.10.19"]
[WhiteClock "0:01:38"]
[BlackClock "0:00:15"]

1. e4 {[%clk 0:03:00]}  c5 {[%clk 0:02:59]} 2. a3 {[%clk 0:03:00]}  g6 {[%clk 0:02:58]} 3. h4 {[%clk 0:02:59]}  h5 {[%clk 0:02:54]} 4. Nc3 {[%clk 0:02:58]}  Bg7 {[%clk 0:02:52]} 5. Bc4 {[%clk 0:02:59]}  Nc6 {[%clk 0:02:46]} 6. d3 {[%clk 0:02:58]}  e6 {[%clk 0:02:28]} 7. Bg5 {[%clk 0:02:44]}  Nge7 {[%clk 0:02:26]} 8. Qd2 {[%clk 0:02:43]}  f6 {[%clk 0:02:15]} 9. Bf4 {[%clk 0:02:40]}  d5 {[%clk 0:02:15]} 10. Ba2 {[%clk 0:02:36]}  Nd4 {[%clk 0:01:57]} 11. Nge2 {[%clk 0:02:33]}  Nxe2 {[%clk 0:01:45]} 12. Qxe2 {[%clk 0:02:30]}  b6 {[%clk 0:01:33]} 13. exd5 {[%clk 0:02:25]}  exd5 {[%clk 0:01:32]} 14. Nxd5 {[%clk 0:02:23]}  Bg4 {[%clk 0:01:09]} 15. f3 {[%clk 0:02:20]}  Rc8 {[%clk 0:00:49]} 16. fxg4 {[%clk 0:02:12]}  Kf8 {[%clk 0:00:46]} 17. Nxe7 {[%clk 0:02:02]}  Qxe7 {[%clk 0:00:43]} 18. Qxe7+ {[%clk 0:02:03]}  Kxe7 {[%clk 0:00:44]} 19. g5 {[%clk 0:02:01]}  fxg5 {[%clk 0:00:42]} 20. Bxg5+ {[%clk 0:02:01]}  Kd7 {[%clk 0:00:40]} 21. O-O-O {[%clk 0:02:00]}  Rce8 {[%clk 0:00:39]} 22. Rde1 {[%clk 0:02:00]}  Be5 {[%clk 0:00:38]} 23. Rhf1 {[%clk 0:01:57]}  Bg3 {[%clk 0:00:37]} 24. Rxe8 {[%clk 0:01:56]}  Rxe8 {[%clk 0:00:37]} 25. Kd2 {[%clk 0:01:56]}  b5 {[%clk 0:00:33]} 26. Rf7+ {[%clk 0:01:55]}  Kc6 {[%clk 0:00:32]} 27. Rf6+ {[%clk 0:01:52]}  Kc7 {[%clk 0:00:32]} 28. Rxg6 {[%clk 0:01:50]}  Be1+ {[%clk 0:00:31]} 29. Kd1 {[%clk 0:01:50]}  Ba5 {[%clk 0:00:31]} 30. Bd2 {[%clk 0:01:49]}  Bb6 {[%clk 0:00:27]} 31. Bf4+ {[%clk 0:01:48]}  Kb7 {[%clk 0:00:27]} 32. Bd5+ {[%clk 0:01:48]}  Ka6 {[%clk 0:00:27]} 33. Rg7 {[%clk 0:01:47]}  c4 {[%clk 0:00:26]} 34. dxc4 {[%clk 0:01:43]}  Rd8 {[%clk 0:00:23]} 35. cxb5+ {[%clk 0:01:40]}  Ka5 {[%clk 0:00:23]} 36. c4 {[%clk 0:01:41]}  Ka4 {[%clk 0:00:20]} 37. Kc2 {[%clk 0:01:41]}  Re8 {[%clk 0:00:19]} 38. b3+ {[%clk 0:01:39]}  Kxa3 {[%clk 0:00:19]} 39. Bd6+ {[%clk 0:01:39]}  Ka2 {[%clk 0:00:18]} 40. c5 {[%clk 0:01:40]}  Re2+ {[%clk 0:00:15]} 41. Kd3 {[%clk 0:01:39]}  Re1 {[%clk 0:00:15]} 42. cxb6 {[%clk 0:01:39]}  Rd1+ {[%clk 0:00:15]} 43. Ke4 {[%clk 0:01:39]}  Re1+ {[%clk 0:00:15]} 44. Kf5 {[%clk 0:01:39]}  axb6 {[%clk 0:00:15]} 45. Rb7 {[%clk 0:01:38]} 1-0


[Site "https://www.chess.com"]